[Event "November 21 Early 2023"]
[Site "https://www.chess.com"]
[Date "2023.11.21"]
[Round "3"]
[White "Ferreira, Vitor Hugo Vieira"]
[Black "Llorente Zaro, Alfonso"]
[Result "1/2-1/2"]
[Board "86"]
[TimeControl "180+1"]
[WhiteFideId "2119765"]
[BlackFideId "2254131"]
[WhiteElo "2123"]
[BlackElo "2485"]
[WhiteTeam "BRA"]
[BlackTeam "ESP"]
[WhiteClock "0:00:07"]
[BlackClock "0:00:05"]

1. d4 {[%clk 0:03:00]}  Nf6 {[%clk 0:02:56]} 2. c4 {[%clk 0:03:00]}  c5 {[%clk 0:02:56]} 3. d5 {[%clk 0:03:00]}  b5 {[%clk 0:02:55]} 4. cxb5 {[%clk 0:03:00]}  a6 {[%clk 0:02:55]} 5. bxa6 {[%clk 0:03:01]}  g6 {[%clk 0:02:55]} 6. Nc3 {[%clk 0:03:01]}  Bg7 {[%clk 0:02:52]} 7. e4 {[%clk 0:03:00]}  O-O {[%clk 0:02:53]} 8. Nf3 {[%clk 0:02:56]}  e6 {[%clk 0:02:53]} 9. d6 {[%clk 0:02:53]}  Qb6 {[%clk 0:02:43]} 10. Nd2 {[%clk 0:02:46]}  Qxd6 {[%clk 0:02:40]} 11. Be2 {[%clk 0:02:45]}  Bxa6 {[%clk 0:02:40]} 12. O-O {[%clk 0:02:45]}  Nc6 {[%clk 0:02:38]} 13. Bxa6 {[%clk 0:02:42]}  Rxa6 {[%clk 0:02:39]} 14. f4 {[%clk 0:02:39]}  Qd4+ {[%clk 0:02:30]} 15. Kh1 {[%clk 0:02:39]}  d5 {[%clk 0:02:30]} 16. e5 {[%clk 0:02:38]}  Nd7 {[%clk 0:02:29]} 17. Nb3 {[%clk 0:02:28]}  Qc4 {[%clk 0:02:25]} 18. Bd2 {[%clk 0:02:24]}  Rb8 {[%clk 0:02:23]} 19. Qf3 {[%clk 0:02:23]}  Nb4 {[%clk 0:02:21]} 20. Rac1 {[%clk 0:02:18]}  Qd3 {[%clk 0:02:20]} 21. Qf2 {[%clk 0:02:04]}  Nxa2 {[%clk 0:02:11]} 22. Nxa2 {[%clk 0:02:02]}  Rxb3 {[%clk 0:02:06]} 23. Rc3 {[%clk 0:01:50]}  Qb5 {[%clk 0:01:59]} 24. Rxb3 {[%clk 0:01:44]}  Qxb3 {[%clk 0:02:00]} 25. Nc1 {[%clk 0:01:44]}  Qxb2 {[%clk 0:02:00]} 26. h4 {[%clk 0:01:42]}  Ra4 {[%clk 0:01:53]} 27. Nd3 {[%clk 0:01:34]}  Qc2 {[%clk 0:01:52]} 28. Ne1 {[%clk 0:01:33]}  Qf5 {[%clk 0:01:49]} 29. Nf3 {[%clk 0:01:33]}  Ra2 {[%clk 0:01:45]} 30. Qe1 {[%clk 0:01:32]}  h6 {[%clk 0:01:38]} 31. Qb1 {[%clk 0:01:32]}  Qxb1 {[%clk 0:01:35]} 32. Rxb1 {[%clk 0:01:33]}  Ra7 {[%clk 0:01:29]} 33. g4 {[%clk 0:01:31]}  Bf8 {[%clk 0:01:29]} 34. h5 {[%clk 0:01:30]}  gxh5 {[%clk 0:01:25]} 35. gxh5 {[%clk 0:01:30]}  Rc7 {[%clk 0:01:22]} 36. f5 {[%clk 0:01:30]}  exf5 {[%clk 0:01:20]} 37. Bf4 {[%clk 0:01:31]}  Ra7 {[%clk 0:01:16]} 38. Nh4 {[%clk 0:01:28]}  c4 {[%clk 0:01:12]} 39. Nxf5 {[%clk 0:01:26]}  Kh7 {[%clk 0:01:12]} 40. Ne3 {[%clk 0:01:19]}  Bg7 {[%clk 0:01:04]} 41. Nxd5 {[%clk 0:01:10]}  Nxe5 {[%clk 0:01:04]} 42. Rc1 {[%clk 0:01:02]}  Nd3 {[%clk 0:00:58]} 43. Rxc4 {[%clk 0:01:01]}  Ra5 {[%clk 0:00:57]} 44. Ne3 {[%clk 0:00:50]}  Rxh5+ {[%clk 0:00:56]} 45. Kg2 {[%clk 0:00:51]}  Rh4 {[%clk 0:00:52]} 46. Bg3 {[%clk 0:00:42]}  Rxc4 {[%clk 0:00:50]} 47. Nxc4 {[%clk 0:00:43]}  Kg6 {[%clk 0:00:49]} 48. Kf3 {[%clk 0:00:42]}  h5 {[%clk 0:00:47]} 49. Ne3 {[%clk 0:00:38]}  Be5 {[%clk 0:00:44]} 50. Bh4 {[%clk 0:00:36]}  Bf6 {[%clk 0:00:43]} 51. Bg3 {[%clk 0:00:36]}  Nc5 {[%clk 0:00:43]} 52. Nd5 {[%clk 0:00:34]}  Ne6 {[%clk 0:00:42]} 53. Ke4 {[%clk 0:00:29]}  Bg5 {[%clk 0:00:39]} 54. Nc3 {[%clk 0:00:26]}  f5+ {[%clk 0:00:37]} 55. Kf3 {[%clk 0:00:24]}  Nd4+ {[%clk 0:00:35]} 56. Kg2 {[%clk 0:00:23]}  h4 {[%clk 0:00:35]} 57. Bf2 {[%clk 0:00:23]}  Ne6 {[%clk 0:00:34]} 58. Nd5 {[%clk 0:00:23]}  Kh5 {[%clk 0:00:34]} 59. Nc3 {[%clk 0:00:20]}  Kg4 {[%clk 0:00:31]} 60. Ne2 {[%clk 0:00:18]}  Be7 {[%clk 0:00:24]} 61. Ng1 {[%clk 0:00:18]}  Ng5 {[%clk 0:00:23]} 62. Be3 {[%clk 0:00:17]}  h3+ {[%clk 0:00:22]} 63. Kh2 {[%clk 0:00:13]}  Bd6+ {[%clk 0:00:20]} 64. Kh1 {[%clk 0:00:14]}  Ne4 {[%clk 0:00:21]} 65. Ba7 {[%clk 0:00:11]}  Be5 {[%clk 0:00:19]} 66. Ne2 {[%clk 0:00:11]}  Kf3 {[%clk 0:00:18]} 67. Ng1+ {[%clk 0:00:11]}  Kg4 {[%clk 0:00:19]} 68. Ne2 {[%clk 0:00:10]}  Bc7 {[%clk 0:00:12]} 69. Bd4 {[%clk 0:00:09]}  Bd6 {[%clk 0:00:12]} 70. Ng1 {[%clk 0:00:09]}  Bc5 {[%clk 0:00:13]} 71. Bxc5 {[%clk 0:00:07]}  Nxc5 {[%clk 0:00:13]} 72. Kh2 {[%clk 0:00:08]}  Ne4 {[%clk 0:00:10]} 73. Nxh3 {[%clk 0:00:08]}  Nd2 {[%clk 0:00:10]} 74. Kg2 {[%clk 0:00:08]}  Ne4 {[%clk 0:00:09]} 75. Ng1 {[%clk 0:00:07]}  Ng5 {[%clk 0:00:09]} 76. Ne2 {[%clk 0:00:07]}  Nh3 {[%clk 0:00:09]} 77. Kf1 {[%clk 0:00:07]}  Ng5 {[%clk 0:00:06]} 78. Nd4 {[%clk 0:00:06]}  f4 {[%clk 0:00:06]} 79. Ne2 {[%clk 0:00:06]}  f3 {[%clk 0:00:06]} 80. Nd4 {[%clk 0:00:07]}  Kg3 {[%clk 0:00:05]} 81. Nxf3 {[%clk 0:00:07]} 1/2-1/2

[Event "November 21 Early 2023"]
[Site "https://www.chess.com"]
[Date "2023.11.21"]
[Round "3"]
[White "Fier, Alexandr"]
[Black "UNSTOPPABLE_LEGEND"]
[Result "1-0"]
[Board "88"]
[TimeControl "180+1"]
[WhiteFideId "2107139"]
[WhiteElo "2578"]
[BlackElo "2503"]
[WhiteTeam "BRA"]
[WhiteClock "0:02:15"]
[BlackClock "0:00:08"]

1. Nf3 {[%clk 0:02:57]}  d5 {[%clk 0:02:57]} 2. g3 {[%clk 0:02:58]}  c5 {[%clk 0:02:56]} 3. Bg2 {[%clk 0:02:59]}  Nc6 {[%clk 0:02:56]} 4. O-O {[%clk 0:02:56]}  Nf6 {[%clk 0:02:56]} 5. c4 {[%clk 0:02:55]}  d4 {[%clk 0:02:55]} 6. e3 {[%clk 0:02:55]}  e5 {[%clk 0:02:55]} 7. exd4 {[%clk 0:02:56]}  cxd4 {[%clk 0:02:56]} 8. Re1 {[%clk 0:02:56]}  Bd6 {[%clk 0:02:47]} 9. b4 {[%clk 0:02:56]}  Bxb4 {[%clk 0:00:36]} 10. Nxe5 {[%clk 0:02:56]}  Nxe5 {[%clk 0:00:35]} 11. Rxe5+ {[%clk 0:02:56]}  Be7 {[%clk 0:00:35]} 12. Ba3 {[%clk 0:02:55]}  Be6 {[%clk 0:00:34]} 13. Bxb7 {[%clk 0:02:50]}  Rb8 {[%clk 0:00:33]} 14. Bc6+ {[%clk 0:02:51]}  Nd7 {[%clk 0:00:33]} 15. Qa4 {[%clk 0:02:24]}  O-O {[%clk 0:00:22]} 16. Rxe6 {[%clk 0:02:25]}  Nb6 {[%clk 0:00:18]} 17. Bxe7 {[%clk 0:02:23]}  Qc8 {[%clk 0:00:14]} 18. Qb5 {[%clk 0:02:18]}  Qxe6 {[%clk 0:00:13]} 19. Bxf8 {[%clk 0:02:17]}  Kxf8 {[%clk 0:00:12]} 20. Na3 {[%clk 0:02:17]}  a6 {[%clk 0:00:11]} 21. Qc5+ {[%clk 0:02:17]}  Kg8 {[%clk 0:00:11]} 22. Rb1 {[%clk 0:02:17]}  Nd7 {[%clk 0:00:10]} 23. Rxb8+ {[%clk 0:02:16]}  Nxb8 {[%clk 0:00:11]} 24. Bd5 {[%clk 0:02:16]}  Qd7 {[%clk 0:00:11]} 25. Qxd4 {[%clk 0:02:15]}  Nc6 {[%clk 0:00:10]} 26. Qb6 {[%clk 0:02:15]}  Nd8 {[%clk 0:00:10]} 27. Qxa6 {[%clk 0:02:15]}  h5 {[%clk 0:00:09]} 28. Nb5 {[%clk 0:02:14]}  h4 {[%clk 0:00:10]} 29. Qd6 {[%clk 0:02:15]}  Qe8 {[%clk 0:00:09]} 30. Kg2 {[%clk 0:02:14]}  Ne6 {[%clk 0:00:08]} 31. Bxe6 {[%clk 0:02:14]}  fxe6 {[%clk 0:00:09]} 32. Nc7 {[%clk 0:02:15]}  Qh5 {[%clk 0:00:08]} 33. Qxe6+ {[%clk 0:02:15]}  Kh8 {[%clk 0:00:08]} 34. Qe8+ {[%clk 0:02:15]} 1-0

[Event "November 21 Early 2023"]
[Site "https://www.chess.com"]
[Date "2023.11.21"]
[Round "3"]
[White "Rodriguez Fontecha, Marcos"]
[Black "Hulka, Valentyn"]
[Result "0-1"]
[Board "89"]
[TimeControl "180+1"]
[WhiteFideId "2256576"]
[BlackFideId "34107061"]
[WhiteElo "2249"]
[BlackElo "2163"]
[WhiteTeam "ESP"]
[BlackTeam "UKR"]
[WhiteClock "0:00:41"]
[BlackClock "0:01:06"]

1. d4 {[%clk 0:03:00]}  Nf6 {[%clk 0:02:59]} 2. Nf3 {[%clk 0:03:00]}  e6 {[%clk 0:02:59]} 3. Bf4 {[%clk 0:03:00]}  d5 {[%clk 0:02:59]} 4. e3 {[%clk 0:03:01]}  c5 {[%clk 0:03:00]} 5. c3 {[%clk 0:03:01]}  Nc6 {[%clk 0:03:00]} 6. Nbd2 {[%clk 0:03:01]}  cxd4 {[%clk 0:03:00]} 7. exd4 {[%clk 0:03:01]}  Nh5 {[%clk 0:03:01]} 8. Bg5 {[%clk 0:03:01]}  f6 {[%clk 0:03:01]} 9. Bh4 {[%clk 0:03:01]}  g6 {[%clk 0:02:59]} 10. Bd3 {[%clk 0:03:00]}  Nf4 {[%clk 0:02:59]} 11. Bf1 {[%clk 0:03:00]}  Bd6 {[%clk 0:02:59]} 12. Bg3 {[%clk 0:03:00]}  O-O {[%clk 0:02:59]} 13. Bxf4 {[%clk 0:02:56]}  Bxf4 {[%clk 0:02:59]} 14. Bd3 {[%clk 0:02:57]}  e5 {[%clk 0:02:59]} 15. dxe5 {[%clk 0:02:53]}  fxe5 {[%clk 0:02:58]} 16. Be2 {[%clk 0:02:51]}  e4 {[%clk 0:02:54]} 17. Nd4 {[%clk 0:02:46]}  Nxd4 {[%clk 0:02:54]} 18. cxd4 {[%clk 0:02:47]}  Qf6 {[%clk 0:02:36]} 19. O-O {[%clk 0:02:45]}  Qxd4 {[%clk 0:02:27]} 20. Nb3 {[%clk 0:02:44]}  Qxd1 {[%clk 0:02:27]} 21. Raxd1 {[%clk 0:02:43]}  Be6 {[%clk 0:02:27]} 22. Nc5 {[%clk 0:02:43]}  Bf7 {[%clk 0:02:27]} 23. b3 {[%clk 0:02:26]}  b6 {[%clk 0:02:24]} 24. Nd7 {[%clk 0:02:17]}  Rfd8 {[%clk 0:02:15]} 25. Bg4 {[%clk 0:02:18]}  Kg7 {[%clk 0:02:06]} 26. g3 {[%clk 0:01:56]}  Bd6 {[%clk 0:01:51]} 27. f3 {[%clk 0:01:56]}  h5 {[%clk 0:01:48]} 28. Bh3 {[%clk 0:01:55]}  Be8 {[%clk 0:01:25]} 29. Rxd5 {[%clk 0:01:17]}  Bxd7 {[%clk 0:01:24]} 30. Bxd7 {[%clk 0:01:17]}  Rxd7 {[%clk 0:01:25]} 31. Kg2 {[%clk 0:01:10]}  Rad8 {[%clk 0:01:20]} 32. fxe4 {[%clk 0:01:01]}  Bc5 {[%clk 0:01:18]} 33. Rfd1 {[%clk 0:00:56]}  Rxd5 {[%clk 0:01:18]} 34. exd5 {[%clk 0:00:57]}  Kf6 {[%clk 0:01:18]} 35. Kf3 {[%clk 0:00:53]}  Rd7 {[%clk 0:01:17]} 36. Ke4 {[%clk 0:00:52]}  Re7+ {[%clk 0:01:17]} 37. Kd3 {[%clk 0:00:52]}  Ke5 {[%clk 0:01:18]} 38. Kc4 {[%clk 0:00:52]}  Kd6 {[%clk 0:01:14]} 39. Rd2 {[%clk 0:00:52]}  Re4+ {[%clk 0:01:12]} 40. Kb5 {[%clk 0:00:52]}  a5 {[%clk 0:01:11]} 41. a3 {[%clk 0:00:47]}  Bxa3 {[%clk 0:01:04]} 42. Kxb6 {[%clk 0:00:46]}  Bb4 {[%clk 0:01:05]} 43. Rf2 {[%clk 0:00:43]}  Kxd5 {[%clk 0:01:05]} 44. Rf6 {[%clk 0:00:41]}  Re6+ {[%clk 0:01:06]} 0-1

[Event "November 21 Early 2023"]
[Site "https://www.chess.com"]
[Date "2023.11.21"]
[Round "3"]
[White "Samunenkov, Ihor"]
[Black "Orlov, Georgi"]
[Result "1-0"]
[Board "90"]
[TimeControl "180+1"]
[WhiteFideId "14187086"]
[BlackFideId "2011271"]
[WhiteElo "2473"]
[BlackElo "2500"]
[WhiteTeam "UKR"]
[BlackTeam "USA"]
[WhiteClock "0:00:34"]
[BlackClock "0:00:00"]

1. e4 {[%clk 0:03:00]}  d6 {[%clk 0:02:58]} 2. d4 {[%clk 0:03:00]}  Nf6 {[%clk 0:02:58]} 3. Nc3 {[%clk 0:03:00]}  g6 {[%clk 0:02:58]} 4. g3 {[%clk 0:02:59]}  Bg7 {[%clk 0:02:57]} 5. Bg2 {[%clk 0:02:59]}  O-O {[%clk 0:02:58]} 6. Nge2 {[%clk 0:02:59]}  e5 {[%clk 0:02:54]} 7. O-O {[%clk 0:02:58]}  Re8 {[%clk 0:02:51]} 8. h3 {[%clk 0:02:38]}  a6 {[%clk 0:02:48]} 9. a4 {[%clk 0:02:27]}  Nc6 {[%clk 0:02:40]} 10. dxe5 {[%clk 0:02:26]}  dxe5 {[%clk 0:02:36]} 11. Bg5 {[%clk 0:02:16]}  Nd4 {[%clk 0:02:21]} 12. Nxd4 {[%clk 0:01:38]}  Qxd4 {[%clk 0:02:20]} 13. Qf3 {[%clk 0:01:21]}  Nh5 {[%clk 0:02:04]} 14. Nd5 {[%clk 0:01:15]}  Qc5 {[%clk 0:01:57]} 15. b4 {[%clk 0:01:06]}  Qc4 {[%clk 0:01:14]} 16. Rfd1 {[%clk 0:01:05]}  Be6 {[%clk 0:01:08]} 17. Bf1 {[%clk 0:00:58]}  Qc6 {[%clk 0:00:46]} 18. Ne7+ {[%clk 0:00:54]}  Rxe7 {[%clk 0:00:45]} 19. Bxe7 {[%clk 0:00:55]}  Re8 {[%clk 0:00:27]} 20. Bc5 {[%clk 0:00:52]}  b6 {[%clk 0:00:19]} 21. Be3 {[%clk 0:00:48]}  Qxc2 {[%clk 0:00:19]} 22. Bxa6 {[%clk 0:00:44]}  Bxh3 {[%clk 0:00:16]} 23. g4 {[%clk 0:00:33]}  Nf4 {[%clk 0:00:15]} 24. Bxf4 {[%clk 0:00:33]}  exf4 {[%clk 0:00:14]} 25. Rac1 {[%clk 0:00:33]}  Qxa4 {[%clk 0:00:00]} 26. Bc4 {[%clk 0:00:34]} 1-0

[Event "November 21 Early 2023"]
[Site "https://www.chess.com"]
[Date "2023.11.21"]
[Round "3"]
[White "Nazari, Arad"]
[Black "Panda Sambit"]
[Result "1-0"]
[Board "92"]
[TimeControl "180+1"]
[WhiteFideId "12577324"]
[BlackFideId "25091794"]
[WhiteElo "2100"]
[BlackElo "2216"]
[WhiteTeam "IRI"]
[BlackTeam "IND"]
[WhiteClock "0:00:31"]
[BlackClock "0:00:01"]

1. e4 {[%clk 0:03:00]}  c6 {[%clk 0:02:55]} 2. Nf3 {[%clk 0:02:47]}  d5 {[%clk 0:02:54]} 3. Nc3 {[%clk 0:02:48]}  Bg4 {[%clk 0:02:52]} 4. h3 {[%clk 0:02:48]}  Bxf3 {[%clk 0:02:52]} 5. Qxf3 {[%clk 0:02:49]}  Nf6 {[%clk 0:02:51]} 6. Be2 {[%clk 0:02:46]}  g6 {[%clk 0:02:40]} 7. O-O {[%clk 0:02:39]}  Bg7 {[%clk 0:02:34]} 8. d3 {[%clk 0:02:37]}  d4 {[%clk 0:02:23]} 9. Nb1 {[%clk 0:02:36]}  Nbd7 {[%clk 0:02:21]} 10. Qg3 {[%clk 0:02:37]}  h5 {[%clk 0:02:17]} 11. f4 {[%clk 0:02:37]}  h4 {[%clk 0:02:17]} 12. Qf2 {[%clk 0:02:37]}  Qb6 {[%clk 0:02:03]} 13. Nd2 {[%clk 0:02:33]}  e5 {[%clk 0:01:50]} 14. Nc4 {[%clk 0:02:30]}  Qc5 {[%clk 0:01:48]} 15. b4 {[%clk 0:02:27]}  Qe7 {[%clk 0:01:46]} 16. fxe5 {[%clk 0:01:50]}  Nxe5 {[%clk 0:01:44]} 17. Nxe5 {[%clk 0:01:47]}  Qxe5 {[%clk 0:01:44]} 18. Bf4 {[%clk 0:01:47]}  Qe6 {[%clk 0:01:37]} 19. Bg5 {[%clk 0:01:42]}  Nh7 {[%clk 0:00:46]} 20. Bg4 {[%clk 0:01:40]}  Nxg5 {[%clk 0:00:32]} 21. Bxe6 {[%clk 0:01:38]}  fxe6 {[%clk 0:00:33]} 22. Qf4 {[%clk 0:01:20]}  Bh6 {[%clk 0:00:14]} 23. Qf6 {[%clk 0:01:03]}  Rg8 {[%clk 0:00:06]} 24. b5 {[%clk 0:00:49]}  c5 {[%clk 0:00:06]} 25. Rf4 {[%clk 0:00:39]}  Kd7 {[%clk 0:00:05]} 26. Rxh4 {[%clk 0:00:30]}  Raf8 {[%clk 0:00:01]} 27. Qe5 {[%clk 0:00:31]}  Nf7 {[%clk 0:00:01]} 28. Qxc5 {[%clk 0:00:30]}  Be3+ {[%clk 0:00:02]} 29. Kh1 {[%clk 0:00:31]}  g5 {[%clk 0:00:02]} 30. Rh7 {[%clk 0:00:30]}  Ke8 {[%clk 0:00:01]} 31. Rf1 {[%clk 0:00:31]}  Ne5 {[%clk 0:00:01]} 32. Qe7# {[%clk 0:00:31]} 1-0

[Event "November 21 Early 2023"]
[Site "https://www.chess.com"]
[Date "2023.11.21"]
[Round "3"]
[White "Mohammad Fahad, Rahman"]
[Black "Devaev, Alexander"]
[Result "1-0"]
[Board "97"]
[TimeControl "180+1"]
[WhiteFideId "10207791"]
[BlackFideId "4169395"]
[WhiteElo "2339"]
[BlackElo "2172"]
[WhiteTeam "BAN"]
[BlackTeam "RUS"]
[WhiteClock "0:02:20"]
[BlackClock "0:01:22"]

1. b3 {[%clk 0:03:00]}  d5 {[%clk 0:02:43]} 2. Nf3 {[%clk 0:02:59]}  c5 {[%clk 0:02:40]} 3. Bb2 {[%clk 0:02:59]}  a6 {[%clk 0:02:40]} 4. e3 {[%clk 0:02:59]}  Nc6 {[%clk 0:02:40]} 5. Be2 {[%clk 0:02:59]}  Nf6 {[%clk 0:02:41]} 6. O-O {[%clk 0:03:00]}  Qc7 {[%clk 0:02:40]} 7. c4 {[%clk 0:03:01]}  dxc4 {[%clk 0:02:39]} 8. bxc4 {[%clk 0:03:01]}  Bf5 {[%clk 0:02:39]} 9. d4 {[%clk 0:03:01]}  e6 {[%clk 0:02:38]} 10. d5 {[%clk 0:03:01]}  Rd8 {[%clk 0:02:35]} 11. Bxf6 {[%clk 0:02:37]}  gxf6 {[%clk 0:02:33]} 12. Qa4 {[%clk 0:02:37]}  exd5 {[%clk 0:02:16]} 13. cxd5 {[%clk 0:02:38]}  Rxd5 {[%clk 0:02:11]} 14. e4 {[%clk 0:02:27]}  b5 {[%clk 0:02:11]} 15. Qxa6 {[%clk 0:02:26]}  Bxe4 {[%clk 0:01:54]} 16. Nc3 {[%clk 0:02:26]}  Nb4 {[%clk 0:01:22]} 17. Qxb5+ {[%clk 0:02:20]} 1-0

[Event "November 21 Early 2023"]
[Site "https://www.chess.com"]
[Date "2023.11.21"]
[Round "3"]
[White "Poormosavi, Seyed Kian"]
[Black "Luukkonen, Tommi"]
[Result "0-1"]
[Board "100"]
[TimeControl "180+1"]
[WhiteFideId "12585807"]
[BlackFideId "501808"]
[WhiteElo "2296"]
[BlackElo "2219"]
[WhiteTeam "IRI"]
[BlackTeam "FIN"]
[WhiteClock "0:00:00"]
[BlackClock "0:00:20"]

1. Nf3 {[%clk 0:02:26]}  d5 {[%clk 0:02:54]} 2. g3 {[%clk 0:02:25]}  Nd7 {[%clk 0:02:54]} 3. Bg2 {[%clk 0:02:26]}  e5 {[%clk 0:02:53]} 4. O-O {[%clk 0:02:25]}  Ngf6 {[%clk 0:02:52]} 5. d3 {[%clk 0:02:26]}  Bd6 {[%clk 0:02:51]} 6. Nbd2 {[%clk 0:02:25]}  c6 {[%clk 0:02:50]} 7. e4 {[%clk 0:02:25]}  O-O {[%clk 0:02:50]} 8. Qe2 {[%clk 0:02:26]}  Re8 {[%clk 0:02:50]} 9. c3 {[%clk 0:02:26]}  a5 {[%clk 0:02:50]} 10. Rd1 {[%clk 0:02:26]}  h6 {[%clk 0:02:49]} 11. a4 {[%clk 0:02:27]}  b6 {[%clk 0:02:47]} 12. Nf1 {[%clk 0:02:21]}  Ba6 {[%clk 0:02:46]} 13. Qc2 {[%clk 0:02:18]}  Rc8 {[%clk 0:02:46]} 14. h3 {[%clk 0:02:17]}  Nf8 {[%clk 0:02:42]} 15. Ne3 {[%clk 0:02:16]}  Ng6 {[%clk 0:02:38]} 16. b3 {[%clk 0:02:02]}  Qc7 {[%clk 0:02:34]} 17. Ng4 {[%clk 0:01:48]}  Nxg4 {[%clk 0:02:26]} 18. hxg4 {[%clk 0:01:49]}  Rcd8 {[%clk 0:02:22]} 19. Nh4 {[%clk 0:01:46]}  Nxh4 {[%clk 0:02:20]} 20. gxh4 {[%clk 0:01:46]}  d4 {[%clk 0:02:18]} 21. c4 {[%clk 0:01:37]}  Qe7 {[%clk 0:02:17]} 22. g5 {[%clk 0:01:34]}  hxg5 {[%clk 0:02:17]} 23. hxg5 {[%clk 0:01:34]}  g6 {[%clk 0:02:13]} 24. Bh3 {[%clk 0:01:08]}  Bc8 {[%clk 0:02:11]} 25. Bxc8 {[%clk 0:01:07]}  Rxc8 {[%clk 0:02:12]} 26. Kg2 {[%clk 0:01:07]}  Kg7 {[%clk 0:02:10]} 27. Rh1 {[%clk 0:01:07]}  Rh8 {[%clk 0:02:11]} 28. Bd2 {[%clk 0:01:04]}  Qe6 {[%clk 0:02:10]} 29. f3 {[%clk 0:01:04]}  f5 {[%clk 0:02:06]} 30. gxf6+ {[%clk 0:01:00]}  Qxf6 {[%clk 0:02:07]} 31. Qd1 {[%clk 0:01:00]}  Rcf8 {[%clk 0:02:03]} 32. Qe2 {[%clk 0:00:58]}  g5 {[%clk 0:01:58]} 33. Rag1 {[%clk 0:00:50]}  Qg6 {[%clk 0:01:57]} 34. Rxh8 {[%clk 0:00:39]}  Rxh8 {[%clk 0:01:56]} 35. Kf1 {[%clk 0:00:39]}  Be7 {[%clk 0:01:52]} 36. Qg2 {[%clk 0:00:40]}  Rh5 {[%clk 0:01:48]} 37. Qg4 {[%clk 0:00:40]}  Kf7 {[%clk 0:01:43]} 38. Ke1 {[%clk 0:00:24]}  Rh2 {[%clk 0:01:09]} 39. Kd1 {[%clk 0:00:18]}  Qe6 {[%clk 0:01:01]} 40. Qxe6+ {[%clk 0:00:11]}  Kxe6 {[%clk 0:01:01]} 41. Bxg5 {[%clk 0:00:10]}  Rb2 {[%clk 0:00:58]} 42. Bxe7 {[%clk 0:00:09]}  Kxe7 {[%clk 0:00:59]} 43. Rg6 {[%clk 0:00:09]}  Kd7 {[%clk 0:00:57]} 44. Rg7+ {[%clk 0:00:08]}  Kd6 {[%clk 0:00:57]} 45. Rg6+ {[%clk 0:00:08]}  Kc5 {[%clk 0:00:57]} 46. Re6 {[%clk 0:00:07]}  Rxb3 {[%clk 0:00:55]} 47. Rxe5+ {[%clk 0:00:08]}  Kb4 {[%clk 0:00:56]} 48. Ke2 {[%clk 0:00:08]}  Rb2+ {[%clk 0:00:48]} 49. Ke1 {[%clk 0:00:09]}  Kc3 {[%clk 0:00:49]} 50. c5 {[%clk 0:00:09]}  Kxd3 {[%clk 0:00:42]} 51. cxb6 {[%clk 0:00:08]}  Rxb6 {[%clk 0:00:42]} 52. Rxa5 {[%clk 0:00:04]}  Ke3 {[%clk 0:00:39]} 53. Kd1 {[%clk 0:00:04]}  d3 {[%clk 0:00:37]} 54. Kc1 {[%clk 0:00:05]}  d2+ {[%clk 0:00:36]} 55. Kc2 {[%clk 0:00:04]}  Rb2+ {[%clk 0:00:32]} 56. Kxb2 {[%clk 0:00:04]}  d1=Q {[%clk 0:00:33]} 57. Rc5 {[%clk 0:00:03]}  Qd4+ {[%clk 0:00:29]} 58. Rc3+ {[%clk 0:00:03]}  Kf4 {[%clk 0:00:26]} 59. Kb3 {[%clk 0:00:04]}  c5 {[%clk 0:00:24]} 60. Kc2 {[%clk 0:00:01]}  Qxa4+ {[%clk 0:00:23]} 61. Kd2 {[%clk 0:00:02]}  Qd4+ {[%clk 0:00:23]} 62. Kc2 {[%clk 0:00:02]}  c4 {[%clk 0:00:23]} 63. Kb2 {[%clk 0:00:03]}  Qd2+ {[%clk 0:00:23]} 64. Rc2 {[%clk 0:00:03]}  Qb4+ {[%clk 0:00:23]} 65. Kc1 {[%clk 0:00:03]}  c3 {[%clk 0:00:23]} 66. e5 {[%clk 0:00:02]}  Qd4 {[%clk 0:00:22]} 67. Re2 {[%clk 0:00:00]}  Qd3 {[%clk 0:00:20]} 0-1

[Event "November 21 Early 2023"]
[Site "https://www.chess.com"]
[Date "2023.11.21"]
[Round "3"]
[White "Wu, Derek"]
[Black "Ramla2020"]
[Result "1-0"]
[Board "103"]
[TimeControl "180+1"]
[WhiteFideId "30914558"]
[WhiteElo "2211"]
[BlackElo "2471"]
[WhiteTeam "USA"]
[WhiteClock "0:00:09"]
[BlackClock "0:00:00"]

1. d4 {[%clk 0:02:58]}  Nf6 {[%clk 0:02:59]} 2. c4 {[%clk 0:02:58]}  e6 {[%clk 0:02:59]} 3. Nc3 {[%clk 0:02:53]}  Bb4 {[%clk 0:02:59]} 4. Qc2 {[%clk 0:02:54]}  d5 {[%clk 0:02:58]} 5. cxd5 {[%clk 0:02:50]}  Qxd5 {[%clk 0:02:59]} 6. Nf3 {[%clk 0:02:47]}  c5 {[%clk 0:02:58]} 7. Bd2 {[%clk 0:02:44]}  Bxc3 {[%clk 0:02:56]} 8. Bxc3 {[%clk 0:02:45]}  cxd4 {[%clk 0:02:54]} 9. Nxd4 {[%clk 0:02:41]}  Nc6 {[%clk 0:02:44]} 10. Nxc6 {[%clk 0:02:37]}  bxc6 {[%clk 0:02:39]} 11. e3 {[%clk 0:02:22]}  Bb7 {[%clk 0:02:17]} 12. Rd1 {[%clk 0:01:39]}  Qg5 {[%clk 0:02:02]} 13. h4 {[%clk 0:01:28]}  Qg6 {[%clk 0:01:56]} 14. Qb3 {[%clk 0:01:24]}  Bc8 {[%clk 0:01:47]} 15. Qa3 {[%clk 0:01:02]}  Nd5 {[%clk 0:01:43]} 16. Qd6 {[%clk 0:01:00]}  Bd7 {[%clk 0:01:36]} 17. h5 {[%clk 0:00:55]}  Qg5 {[%clk 0:01:31]} 18. h6 {[%clk 0:00:50]}  f6 {[%clk 0:01:25]} 19. e4 {[%clk 0:00:35]}  Nb6 {[%clk 0:01:19]} 20. Bb4 {[%clk 0:00:20]}  f5 {[%clk 0:01:19]} 21. Rh5 {[%clk 0:00:16]}  Qf6 {[%clk 0:01:14]} 22. hxg7 {[%clk 0:00:15]}  Qxg7 {[%clk 0:01:13]} 23. Bc3 {[%clk 0:00:16]}  Qf8 {[%clk 0:01:07]} 24. Bxh8 {[%clk 0:00:15]}  Qxh8 {[%clk 0:01:06]} 25. exf5 {[%clk 0:00:15]}  Qxb2 {[%clk 0:01:00]} 26. Be2 {[%clk 0:00:13]}  Qc3+ {[%clk 0:00:52]} 27. Kf1 {[%clk 0:00:13]}  exf5 {[%clk 0:00:47]} 28. Rxh7 {[%clk 0:00:12]}  O-O-O {[%clk 0:00:46]} 29. Kg1 {[%clk 0:00:11]}  Kb7 {[%clk 0:00:43]} 30. Bf3 {[%clk 0:00:11]}  a5 {[%clk 0:00:31]} 31. Rb1 {[%clk 0:00:11]}  Ka7 {[%clk 0:00:00]} 32. Qc7+ {[%clk 0:00:09]} 1-0